{"text_format":"1","workbook":"xlsx","n_sheets":2,"sheets":["Stand Alone","Nettilsluttet"],"not_rendered":{"charts":0,"images":4,"macros":1,"external_links":0,"defined_names":0,"comments":0,"pivot_tables":0},"unopened":[],"bounds":{"document_bytes":16777216,"sheet_cells":100000,"rows_first":2000,"rows_last":500,"rows_between":2000,"halvings":0,"cell_chars":16384,"cell_head_chars":4096},"cells_cut":0,"cells_raw":0,"read":"whole","date_system":"1900"}

{"sheet":"Stand Alone","index":0,"n_rows":31,"n_cols":19,"rows_kept":31,"cut":false,"hidden":true,"merged":[]}
[null,"Overslagsberegning af stand alone solcelleanlæg i Danmark"]
[null,"Indtast værdier I de hvide felter eller brug skyderen"]
[null,"A. Samlet dagligt energibehov",null,null,null,null,null,null,null,null,null,null,null,null,null,null,"Standardværdier:"]
[null,"Apparat:",null,null,"Mærkeeffekt W",null,"Brugstimer pr. døgn",null,null,null,"Energibehov I Watt-timer"]
[null,"Lampe",null,null,10,null,4,null,null,null,null,{"$f":"E5*G5","v":40},null,null,null,null,10,null,4]
[null,"PC",null,null,20,null,1,null,null,null,null,{"$f":"E6*G6","v":20},null,null,null,null,20,null,1]
[null,"Fjernsyn",null,null,30,null,4,null,null,null,null,{"$f":"E7*G7","v":120},null,null,null,null,30,null,4]
[null,null,null,null,null,null,null,null,null,null,null,{"$f":"E8*G8","v":0}]
[null,"Samlet daglig energi:",null,null,null,null,null,null,null,null,null,{"$f":"SUM(L5:L8)","v":180},"Wh"]
[null,"B. Daglig gennemsnitlig mængde solenergi i den dimensionerende måned (Sydvendt flade, se tabel)"]
[null,null,null,null,3,"kWh/m²",null,null,null,null,null,null,null,null,null,null,3]
[null,null,null,null,null,null,null,null,null,"Helårsanlæg",null,null,"Kun for sommerhalvår"]
[]
[null,"Hældning","Januar","Februar","Marts","April","Maj ","Juni","Juli","August","September","Oktober","November","December"]
[null,"15°",0.7,1.5,2.4,4.2,5.3,5.2,5.5,4.5999999999999996,3,"1,.8",0.9,0.5]
[null,"75°",1.2,1.9,2.5,3.8,3.9,3.6,3.9,3.7,3,2.1,1.3,0.8]
[null,"C. Forsyningssikkerhed (Antal døgn der skal kunne forsynes uden sol)"]
[]
[null,null,null,null,3,"Døgn",null,null,"Ukritiske anlæg",null,"Typisk fritidsanlæg",null,"Kritisk forsyning",null,null,null,3]
[]
[null,"D. Batteriets afladningsdybde i forhold til nominel kapacitet"]
[null,null,null,null,40,"%",null,null,null,null,null,null,null,null,null,null,40]
[null,null,null,null,null,null,null,null,"     Startbatteri",null,"Fritidsbatteri",null,"Solarbatteri"]
[null,"RESULTATER:"]
[]
[null," Solcellemodul:",null,{"$f":"L9","v":180},"x",1.5,"/",{"$f":"E11","v":3},null," =",null,{"$f":"L9*1.5/E11","v":90},"Wpeak"]
[null,null,null,"A",null,"(sikkerhed)",null,"B"]
[]
[]
[null," Batterikapacitet",null,{"$f":"L9","v":180},"x",{"$f":"E19","v":3},"/",{"$f":"E22/100","v":0.4},null," =",null,{"$f":"L9*E19*100/E22","v":1350},"Wh"]
[null,null,null,"A",null,"C",null,"D",null,null,null,{"$f":"L30/12","v":112.5},"Ah(12V)"]

{"sheet":"Nettilsluttet","index":1,"n_rows":31,"n_cols":17,"rows_kept":31,"cut":false,"hidden":false,"merged":[[19,16,30,20],[18,16,18,20],[0,16,16,20],[17,16,17,20]]}
[null,"NETTILSLUTTET SOLCELLEANLÆG I DANMARK",null,null,null,null,null,null,null,null,null,null,null,null,null,null,"Introduktion\n\nNettilsluttede solcelleanlæg forsyner det normale elnet med solstrøm via en vekselretter. Anlæggene vil ofte være monteret på en eksisterende bygning, hvad der bestemmer solcellernes hældning og orientering.\n\nVed tryk på indtastningsfelterne  fremkommer uddybende hjælpetekster i feltet herunder.\n\nVed tryk på \"Typiske værdier\" indsættes data for et typisk anlæg til et enfamiliehus i input-felterne. \n\nResultaterne er typiske værdier. I praksis forekommer afvigelser på grund af de lokale indbygnings- og installationsforhold"]
[null,"Indtast værdier nedenfor eller brug skyderen"]
[null,"Se i feltet nederst til højre for at få en forklaring"]
[]
[null,"Input:"]
[]
[null,"Samlet modulareal",null,null,null,40,"m²",null,null,null,null,null,null,"<==",40]
[]
[]
[null,"Hældning fra vandret",null,null,null,30,"Grader",null,null,null,null,null,null,"<==",30]
[null,null,null,null,null,null,null,"Vandret",null,null,null,null,"Lodret"]
[]
[null,"Afvigelse fra syd(0-90)",null,null,null,0,"Grader",null,null,null,null,null,null,"<==",0]
[null,null,null,null,null,null,null,"Syd",null,null,null,null,"Øst/vest"]
[null,null,null,null,null,null,null,null,null,"Solcelletype:"]
[null,"Modulvirkningsgrad",null,null,null,4,"%",null,null,null,null,null,null,"<==",14]
[null,null,null,null,null,null,null,"                Tyndfilm                       Multi-X       Mono-X         Avancerede"]
[null,null,null,null,null,null,null,null,null,null,null,null,null,null,null,null,"Vejledning til input"]
[null,"Systemfaktor",null,null,null,85,"%",null,null,null,null,null,null,"<==",85,null,"Modulareal:"]
[null,null,null,null,null,null,null,null,"Ringe","typisk","typisk","Ideel",null,null,null,null,"Samlet solcelleareal incl kanter og mellemrum mellem cellerne men excl areal mellem modulerne"]
[]
[null,"Resultater:"]
[]
[null,"Beregnet ydelse år 1",null,null,null,{"$f":"+F31*F7*F16*F19/10000","v":1564.52224},"kWh",null,"Leveret til el-nettet pr. år"]
[null,null,null,null,null,{"$f":"+F24/F7","v":39.113056},"kWh/m²",null,"Ydelse per arealenhed"]
[null,null,null,null,null,{"$f":"F24/F29","v":977.82639999999992},"kWh/kWpeak",null,"Ydelse i forhold til installeret solcelleeffekt"]
[null,null,null,null,null,{"$f":"F26*100/1160","v":84.295379310344813},"% ",null,"Ydelse i forhold til idealanlæg"]
[]
[null,"Installeret solcelleeffekt",null,null,null,{"$f":"+F7*F16/100","v":1.6},"kWpeak"]
[]
[null,"Indstråling på den aktuelle flade",null,null,null,{"$f":"F13*F13*(F10*F10*0.00000846 - 0.00108*F10 + 0.000207)+F13*(0.00003*F10*F10 - 0.003*F10 - 0.0019)-0.1043*F10*F10 + 8.2598*F10 + 996.46","v":1150.384},"kWh/m²",{"$f":"F31*100/1160","v":99.171034482758614},"% af indstråling ved ideel placering"]